fUST/lending_fUST_20250819
["ID","MTS","AMOUNT","RATE_DAILY","PERIOD"]
[380151707,1755579038787,-985.99,0.00019178,2]
[380151708,1755579038796,-480.0,0.00019178,2]
[380151709,1755579038806,-480.0,0.00019178,2]
[380151710,1755579038815,-480.0,0.00019178,2]
[380151711,1755579038824,-480.0,0.00019178,2]
[380151712,1755579038833,-513.05,0.00019178,2]
[380151713,1755579038842,-480.0,0.00019178,2]
[380151714,1755579038851,-480.0,0.00019178,2]
[380151715,1755579038861,-627.54011841,0.00019178,2]
[380151716,1755579038872,-480.0,0.00019178,2]
[380151717,1755579038881,-461.46113306,0.00019178,2]
[380151718,1755579038890,-480.0,0.00019178,2]
[380151719,1755579038899,-460.59689883,0.00019178,2]
[380151720,1755579038909,-480.0,0.00019178,2]
[380151721,1755579038918,-3778.42,0.00019178,2]
[380151722,1755579038928,-480.0,0.00019178,2]
[380151723,1755579039044,-744.59,0.00019178,2]
[380151724,1755579039054,-480.48679572,0.00019178,2]
[380151725,1755579039063,-480.0,0.00019178,2]
[380151726,1755579039073,-480.0,0.00019178,2]
[380151727,1755579039082,-480.79301986,0.00019178,2]
[380151728,1755579039091,-480.0,0.00019178,2]
[380151729,1755579039101,-480.0,0.00019178,2]
[380151730,1755579039110,-480.0,0.00019178,2]
[380151731,1755579039119,-480.27727365,0.00019178,2]
[380151732,1755579039129,-480.0,0.00019178,2]
[380151733,1755579039139,-480.0,0.00019178,2]
[380151734,1755579039148,-490.54028864,0.00019178,2]
[380151735,1755579039158,-480.0,0.00019178,2]
[380151736,1755579039168,-505.45586549,0.00019178,2]
[380151737,1755579039178,-480.0,0.00019178,2]
[380151738,1755579039195,-480.0,0.00019178,2]
[380151739,1755579039210,-480.0,0.00019178,2]
[380151740,1755579039220,-480.0,0.00019178,2]
[380151741,1755579039229,-480.0,0.00019178,2]
[380151742,1755579039239,-480.0,0.00019178,2]
[380151743,1755579039248,-480.0,0.00019178,2]
[380151744,1755579039258,-480.0,0.00019178,2]
[380151745,1755579039268,-501.01882079,0.00019178,2]
[380151746,1755579039277,-470.94230838,0.00019178,2]
[380151747,1755579039287,-500.0,0.00019178,2]
[380151748,1755579039297,-480.0,0.00019178,2]
[380151749,1755579039307,-500.0,0.00019178,2]
[380151750,1755579039317,-480.0,0.00019178,2]
[380151751,1755579039326,-500.0,0.00019178,2]
[380151752,1755579039335,-500.0,0.00019178,2]
[380151753,1755579039348,-462.04557642,0.00019178,2]
[380151754,1755579039357,-500.0,0.00019178,2]
[380151755,1755579039366,-500.0,0.00019178,2]
[380151756,1755579039375,-500.0,0.00019178,2]
[380151757,1755579039386,-361.154715,0.00019178,2]
[380151758,1755579039395,-500.0,0.00019178,2]
[380151759,1755579039404,-500.0,0.00019178,2]
[380151760,1755579039414,-500.0,0.00019178,2]
[380151761,1755579039424,-500.0,0.00019178,2]
[380151762,1755579039434,-480.0,0.00019178,2]
[380151763,1755579039443,-500.0,0.00019178,2]
[380151764,1755579039453,-480.0,0.00019178,2]
[380151765,1755579039462,-460.0,0.00019178,2]
[380151766,1755579039472,-480.0,0.00019178,2]
[380151767,1755579039482,-480.0,0.00019178,2]
[380151768,1755579039492,-480.0,0.00019178,2]
[380151769,1755579039501,-480.0,0.00019178,2]
[380151770,1755579039511,-480.0,0.00019178,2]
[380151771,1755579039520,-480.0,0.00019178,2]
[380151773,1755579039530,-480.0,0.00019178,2]
[380151774,1755579039539,-480.0,0.00019178,2]
[380151775,1755579039550,-460.0,0.00019178,2]
[380151776,1755579039559,-480.0,0.00019178,2]
[380151777,1755579039568,-436.79639534,0.00019178,2]
[380151778,1755579039577,-593.43148632,0.00019178,2]
[380151779,1755579039586,-480.0,0.00019178,2]
[380151780,1755579039595,-508.66346385,0.00019178,2]
[380151781,1755579039604,-461.60292893,0.00019178,2]
[380151782,1755579039613,-480.0,0.00019178,2]
[380151783,1755579039622,-480.0,0.00019178,2]
[380151784,1755579039631,-480.0,0.00019178,2]
[380151785,1755579039640,-460.82308239,0.00019178,2]
[380151786,1755579039649,-480.0,0.00019178,2]
[380151787,1755579039659,-416.79643302,0.00019178,2]
[380151788,1755579039668,-480.0,0.00019178,2]
[380151789,1755579039677,-442.11195908,0.00019178,2]
[380151790,1755579039686,-626.62848905,0.00019178,2]
[380151791,1755579039696,-480.0,0.00019178,2]
[380151792,1755579039707,-480.0,0.00019178,2]
[380151793,1755579039716,-480.0,0.00019178,2]
[380151794,1755579039725,-480.0,0.00019178,2]
[380151795,1755579039734,-460.0,0.00019178,2]
[380151796,1755579039743,-480.0,0.00019178,2]
[380151797,1755579039752,-480.0,0.00019178,2]
[380151798,1755579039761,-460.0,0.00019178,2]
[380151799,1755579039770,-480.0,0.00019178,2]
[380151800,1755579039779,-480.0,0.00019178,2]
[380151801,1755579039788,-283.96907723,0.00019178,2]
[380151802,1755579039797,-939.72,0.00019178,2]
[380151803,1755579039806,-481.43828344,0.00019178,2]
[380151804,1755579039815,-480.0,0.00019178,2]
[380151805,1755579039824,-468.1617878,0.00019178,2]
[380151806,1755579039834,-480.0,0.00019178,2]
[380151807,1755579039843,-480.0,0.00019178,2]
[380151808,1755579039852,-480.0,0.00019178,2]
[380151809,1755579039861,-480.0,0.00019178,2]
[380151810,1755579039870,-881.35,0.00019178,2]
[380151811,1755579039879,-480.0,0.00019178,2]
[380151812,1755579039888,-519.7754177,0.00019178,2]
[380151813,1755579039897,-480.0,0.00019178,2]
[380151814,1755579039907,-450.89900101,0.00019178,2]
[380151815,1755579039917,-480.0,0.00019178,2]
[380151816,1755579039926,-480.0,0.00019178,2]
[380151817,1755579039936,-480.0,0.00019178,2]
[380151818,1755579039945,-480.0,0.00019178,2]
[380151819,1755579039954,-1301.57,0.00019178,2]
[380151820,1755579039964,-480.0,0.00019178,2]
[380151822,1755579039973,-480.0,0.00019178,2]
[380151823,1755579039983,-600.59,0.00019178,2]
[380151824,1755579039992,-480.0,0.00019178,2]
[380151825,1755579040001,-480.0,0.00019178,2]
[380151826,1755579040010,-480.0,0.00019178,2]
[380151828,1755579040019,-480.0,0.00019178,2]
[380151829,1755579040028,-480.0,0.00019178,2]
[380151831,1755579040038,-480.0,0.00019178,2]
[380151832,1755579040047,-1740.65,0.00019178,2]
[380151833,1755579040056,-480.0,0.00019178,2]
[380151834,1755579040066,-460.0,0.00019178,2]
[380151835,1755579040075,-480.0,0.00019178,2]
[380151836,1755579040084,-482.06286153,0.00019178,2]
[380151837,1755579040094,-461.74177837,0.00019178,2]
[380151839,1755579040103,-480.0,0.00019178,2]
[380151840,1755579040113,-480.0,0.00019178,2]
[380151841,1755579040124,-480.0,0.00019178,2]
[380151843,1755579040133,-480.0,0.00019178,2]
[380151845,1755579040142,-480.0,0.00019178,2]
[380151846,1755579040152,-480.0,0.00019178,2]
[380151847,1755579040161,-462.38344847,0.00019178,2]
[380151848,1755579040170,-480.0,0.00019178,2]
[380151849,1755579040179,-480.0,0.00019178,2]
[380151850,1755579040188,-480.0,0.00019178,2]
[380151851,1755579040197,-480.0,0.00019178,2]
[380151852,1755579040207,-480.0,0.00019178,2]
[380151853,1755579040216,-480.0,0.00019178,2]
[380151854,1755579040225,-303.70207332,0.00019178,2]
[380151855,1755579040235,-1551.36,0.00019178,2]
[380151856,1755579040244,-480.0,0.00019178,2]
[380151857,1755579040253,-483.90939701,0.00019178,2]
[380151858,1755579040263,-643.09,0.00019178,2]
[380151859,1755579040272,-480.0,0.00019178,2]
[380151860,1755579040281,-480.0,0.00019178,2]
[380151861,1755579040290,-480.0,0.00019178,2]
[380151862,1755579040300,-480.0,0.00019178,2]
[380151863,1755579040309,-480.0,0.00019178,2]
[380151864,1755579040318,-565.62,0.00019178,2]
[380151865,1755579040327,-480.0,0.00019178,2]
[380151866,1755579040336,-480.0,0.00019178,2]
[380151867,1755579040351,-1642.46,0.00019178,2]
[380151868,1755579040360,-480.0,0.00019178,2]
[380151869,1755579040369,-480.0,0.00019178,2]
[380151870,1755579040379,-480.0,0.00019178,2]
[380151871,1755579040388,-480.0,0.00019178,2]
[380151872,1755579040398,-480.0,0.00019178,2]
[380151873,1755579040412,-842.12,0.00019178,2]
[380151874,1755579040424,-480.0,0.00019178,2]
[380151875,1755579040433,-480.0,0.00019178,2]
[380151876,1755579040442,-480.0,0.00019178,2]
[380151877,1755579040451,-480.0,0.00019178,2]
[380151878,1755579040460,-480.0,0.00019178,2]
[380151879,1755579040470,-480.0,0.00019178,2]
[380151880,1755579040479,-480.0,0.00019178,2]
[380151881,1755579040489,-847.46,0.00019178,2]
[380151882,1755579040498,-480.0,0.00019178,2]
[380151883,1755579040507,-480.0,0.00019178,2]
[380151884,1755579040516,-460.61820503,0.00019178,2]
[380151885,1755579040525,-2493.28,0.00019178,2]
[380151886,1755579040534,-460.0,0.00019178,2]
[380151887,1755579040543,-480.0,0.00019178,2]
[380151888,1755579040552,-480.0,0.00019178,2]
[380151889,1755579040561,-480.0,0.00019178,2]
[380151890,1755579040570,-480.0,0.00019178,2]
[380151891,1755579040579,-480.0,0.00019178,2]
[380151892,1755579040588,-480.0,0.00019178,2]
[380151893,1755579040597,-461.98817853,0.00019178,2]
[380151894,1755579040606,-480.0,0.00019178,2]
[380151895,1755579040615,-2268.97,0.00019178,2]
[380151896,1755579040624,-674.92,0.00019178,2]
[380151897,1755579040634,-1673.72,0.00019178,2]
[380151898,1755579040642,-480.0,0.00019178,2]
[380151899,1755579040651,-480.0,0.00019178,2]
[380151900,1755579040663,-480.0,0.00019178,2]
[380151901,1755579040672,-480.0,0.00019178,2]
[380151902,1755579040681,-480.0,0.00019178,2]
[380151903,1755579040689,-858.8,0.00019178,2]
[380151904,1755579040698,-1000.0,0.00019178,2]
[380151905,1755579040707,-480.0,0.00019178,2]
[380151906,1755579040717,-480.0,0.00019178,2]
[380151907,1755579040726,-480.0,0.00019178,2]
[380151908,1755579040735,-571.87,0.00019178,2]
[380151909,1755579040744,-1284.65,0.00019178,2]
[380151910,1755579040754,-480.0,0.00019178,2]
[380151911,1755579040763,-480.0,0.00019178,2]
[380151912,1755579040772,-500.0,0.00019178,2]
[380151913,1755579040781,-500.0,0.00019178,2]
[380151914,1755579040790,-500.0,0.00019178,2]
[380151915,1755579040800,-515.92722186,0.00019178,2]
[380151916,1755579040809,-500.0,0.00019178,2]
[380151917,1755579040818,-500.0,0.00019178,2]
[380151918,1755579040828,-480.0,0.00019178,2]
[380151919,1755579040838,-480.0,0.00019178,2]
[380151920,1755579040847,-1925.36,0.00019178,2]
[380151921,1755579040857,-769.71,0.00019178,2]
[380151922,1755579040866,-480.0,0.00019178,2]
[380151923,1755579040876,-261.31949521,0.00019178,2]
[380151924,1755579040885,-480.0,0.00019178,2]
[380151925,1755579040894,-480.0,0.00019178,2]
[380151926,1755579040903,-480.0,0.00019178,2]
[380151927,1755579040912,-480.0,0.00019178,2]
[380151928,1755579040921,-460.87347647,0.00019178,2]
[380151929,1755579040930,-480.0,0.00019178,2]
[380151930,1755579040939,-461.09121263,0.00019178,2]
[380151931,1755579040948,-480.0,0.00019178,2]
[380151932,1755579040957,-480.0,0.00019178,2]
[380151933,1755579040966,-480.0,0.00019178,2]
[380151934,1755579040975,-480.0,0.00019178,2]
[380151935,1755579040984,-480.0,0.00019178,2]
[380151936,1755579040994,-480.0,0.00019178,2]
[380151937,1755579041004,-386.77145185,0.00019178,2]
[380151938,1755579041013,-480.0,0.00019178,2]
[380151939,1755579041023,-480.0,0.00019178,2]
[380151940,1755579041032,-480.0,0.00019178,2]
[380151941,1755579041042,-480.0,0.00019178,2]
[380151942,1755579041052,-480.0,0.00019178,2]
[380151943,1755579041149,-480.0,0.00019178,2]
[380151944,1755579041159,-480.0,0.00019178,2]
[380151945,1755579041168,-480.0,0.00019178,2]
[380151946,1755579041177,-480.0,0.00019178,2]
[380151947,1755579041186,-480.0,0.00019178,2]
[380151948,1755579041195,-876.41,0.00019178,2]
[380151949,1755579041204,-480.0,0.00019178,2]
[380151950,1755579041213,-500.0,0.00019178,2]
[380151951,1755579041222,-480.0,0.00019178,2]
[380151952,1755579041231,-480.0,0.00019178,2]
[380151953,1755579041240,-483.06658833,0.00019178,2]
[380151954,1755579041250,-480.0,0.00019178,2]
[380151955,1755579041259,-480.0,0.00019178,2]
[380151956,1755579041268,-480.0,0.00019178,2]
[380151957,1755579041277,-231.53048284,0.00019178,2]
[380151958,1755579041287,-480.0,0.00019178,2]
[380151959,1755579041296,-480.4691863,0.00019178,2]
[380151960,1755579041305,-480.0,0.00019178,2]
[380151961,1755579041314,-480.0,0.00019178,2]
[380151962,1755579041323,-500.0,0.00019178,2]
[380151963,1755579041333,-500.0,0.00019178,2]
[380151964,1755579041345,-500.0,0.00019178,2]
[380151965,1755579041355,-464.62,0.00019178,2]
[380151966,1755579041365,-5516.69,0.00019178,2]
[380151967,1755579041375,-481.12848898,0.00019178,2]
[380151968,1755579041386,-487.1,0.00019178,2]
[380151969,1755579041395,-480.0,0.00019178,2]
[380151970,1755579041405,-480.0,0.00019178,2]
[380151971,1755579041415,-1485.56,0.00019178,2]
[380151972,1755579041426,-829.77,0.00019178,2]
[380151973,1755579041436,-582.94001896,0.00019178,2]
[380151974,1755579041445,-480.860249,0.00019178,2]
[380151975,1755579041454,-564.93132093,0.00019178,2]
[380151976,1755579041464,-462.3873292,0.00019178,2]
[380151977,1755579041473,-500.33,0.00019178,2]
[380151978,1755579041482,-480.0,0.00019178,2]
[380151979,1755579041491,-480.0,0.00019178,2]
[380151980,1755579041502,-480.0,0.00019178,2]
[380151981,1755579041511,-643.26,0.00019178,2]
[380151982,1755579041520,-881.78,0.00019178,2]
[380151983,1755579041530,-460.0,0.00019178,2]
[380151984,1755579041539,-766.36,0.00019178,2]
[380151985,1755579041550,-482.24926785,0.00019178,2]
[380151986,1755579041560,-481.56356864,0.00019178,2]
[380151987,1755579041569,-480.0,0.00019178,2]
[380151988,1755579041578,-461.38946916,0.00019178,2]
[380151989,1755579041587,-480.0,0.00019178,2]
[380151990,1755579041597,-5454.84,0.00019178,2]
[380151991,1755579041606,-400.0,0.00019178,2]
[380151992,1755579041615,-480.0,0.00019178,2]
[380151993,1755579041625,-480.0,0.00019178,2]
[380151994,1755579041634,-480.0,0.00019178,2]
[380151995,1755579041643,-480.0,0.00019178,2]
[380151996,1755579041652,-1776.55,0.00019178,2]
[380151997,1755579041662,-480.0,0.00019178,2]
[380151998,1755579041671,-480.0,0.00019178,2]
[380151999,1755579041680,-460.98051936,0.00019178,2]
[380152000,1755579041689,-480.0,0.00019178,2]
[380152001,1755579041698,-480.0,0.00019178,2]
[380152002,1755579041708,-480.0,0.00019178,2]
[380152003,1755579041717,-480.0,0.00019178,2]
[380152004,1755579041726,-480.0,0.00019178,2]
[380152005,1755579041736,-480.0,0.00019178,2]
[380152006,1755579041745,-460.0,0.00019178,2]
[380152007,1755579041755,-1807.55,0.00019178,2]
[380152008,1755579041764,-480.0,0.00019178,2]
[380152009,1755579041774,-480.0,0.00019178,2]
[380152010,1755579041783,-480.0,0.00019178,2]
[380152011,1755579041793,-480.0,0.00019178,2]
[380152012,1755579041803,-480.0,0.00019178,2]
[380152013,1755579041812,-480.0,0.00019178,2]
[380152014,1755579041821,-480.0,0.00019178,2]
[380152015,1755579041831,-461.12111379,0.00019178,2]
[380152016,1755579041841,-480.0,0.00019178,2]
[380152017,1755579041850,-480.0,0.00019178,2]
[380152018,1755579041860,-573.94,0.00019178,2]
[380152019,1755579041869,-666.0,0.00019178,2]
[380152020,1755579041879,-500.0,0.00019178,2]
[380152021,1755579041889,-9604.8864852,0.00019178,2]
[380152022,1755579041899,-5000.0,0.00019178,2]
[380152023,1755579041909,-5000.0,0.00019178,2]
[380152024,1755579041917,-1340.36565112,0.00019178,2]
[380152025,1755579041926,-12241.52889835,0.00019253,2]
[380152026,1755579041936,-11947.45442549,0.00019282,2]
[380152027,1755579041946,-205.75212627,0.00019284,2]
[380152028,1755579041955,-431.9034523,0.000193,2]
[380152029,1755579041964,-100000.0,0.00019329,2]
[380152030,1755579041973,-179.71246006,0.00019352,2]
[380152031,1755579041982,-500.0,0.00019451,2]
[380152032,1755579041991,-500.0,0.00019451,2]
[380152033,1755579042001,-482.76811459,0.00019451,2]
[380152034,1755579042010,-480.0,0.00019452,2]
[380152035,1755579042020,-480.0,0.00019452,2]
[380152036,1755579042029,-480.0,0.00019452,2]
[380152037,1755579042040,-485.22120474,0.00019452,2]
[380152038,1755579042050,-480.0,0.00019452,2]
[380152039,1755579042059,-480.0,0.00019452,2]
[380152040,1755579042069,-497.5,0.00019452,2]
[380152041,1755579042078,-480.0,0.00019452,2]
[380152042,1755579042088,-480.0,0.00019452,2]
[380152043,1755579042097,-529.89,0.00019452,2]
[380152044,1755579042107,-480.0,0.00019452,2]
[380152045,1755579042117,-480.0,0.00019452,2]
[380152046,1755579042126,-480.0,0.00019452,2]
[380152047,1755579042136,-507.99620771,0.00019452,2]
[380152048,1755579042146,-480.0,0.00019452,2]
[380152049,1755579042156,-480.0,0.00019452,2]
[380152050,1755579042165,-480.0,0.00019452,2]
[380152051,1755579042174,-480.0,0.00019452,2]
[380152052,1755579042183,-510.74407931,0.00019452,2]
[380152053,1755579042192,-644.01,0.00019452,2]
[380152054,1755579042201,-474.61496661,0.00019452,2]
[380152055,1755579042211,-480.0,0.00019452,2]
[380152056,1755579042220,-485.57299147,0.00019452,2]
[380152057,1755579042229,-480.0,0.00019452,2]
[380152058,1755579042239,-205.10318379,0.00019452,2]
[380152059,1755579042248,-480.0,0.00019452,2]
[380152060,1755579042257,-480.0,0.00019452,2]
[380152061,1755579042266,-480.0,0.00019452,2]
[380152062,1755579042276,-480.0,0.00019452,2]
[380152063,1755579042285,-480.0,0.00019452,2]
[380152064,1755579042294,-480.0,0.00019452,2]
[380152065,1755579042304,-480.0,0.00019452,2]
[380152066,1755579042313,-480.0,0.00019452,2]
[380152067,1755579042322,-480.0,0.00019452,2]
[380152068,1755579042333,-480.0,0.00019452,2]
[380152069,1755579042346,-642.04,0.00019452,2]
[380152070,1755579042356,-481.20961981,0.00019452,2]
[380152071,1755579042366,-480.0,0.00019452,2]
[380152072,1755579042376,-480.0,0.00019452,2]
[380152073,1755579042385,-480.0,0.00019452,2]
[380152074,1755579042395,-463.44535643,0.00019452,2]
[380152075,1755579042405,-480.0,0.00019452,2]
[380152076,1755579042415,-610.7,0.00019452,2]
[380152077,1755579042426,-480.0,0.00019452,2]
[380152078,1755579042437,-985.99,0.00019452,2]
[380152079,1755579042449,-480.0,0.00019452,2]
[380152080,1755579042459,-480.0,0.00019452,2]
[380152081,1755579042468,-480.0,0.00019452,2]
[380152082,1755579042479,-480.0,0.00019452,2]
[380152084,1755579042489,-513.05,0.00019452,2]
[380152086,1755579042499,-480.0,0.00019452,2]
[380152088,1755579042509,-480.0,0.00019452,2]
[380152090,1755579042518,-480.0,0.00019452,2]
[380152093,1755579042527,-497.02014658,0.00019452,2]
[380152096,1755579042537,-3778.42,0.00019452,2]
[380152099,1755579042546,-744.59,0.00019452,2]
[380152102,1755579042555,-480.0,0.00019452,2]
[380152104,1755579042564,-480.0,0.00019452,2]
[380152106,1755579042574,-480.0,0.00019452,2]
[380152107,1755579042583,-480.0,0.00019452,2]
[380152108,1755579042592,-480.0,0.00019452,2]
[380152109,1755579042602,-480.0,0.00019452,2]
[380152110,1755579042612,-480.0,0.00019452,2]
[380152111,1755579042621,-480.0,0.00019452,2]
[380152112,1755579042630,-480.0,0.00019452,2]
[380152113,1755579042639,-480.0,0.00019452,2]
[380152114,1755579042649,-480.0,0.00019452,2]
[380152115,1755579042659,-480.0,0.00019452,2]
[380152116,1755579042667,-480.0,0.00019452,2]
[380152117,1755579042677,-480.0,0.00019452,2]
[380152118,1755579042686,-480.0,0.00019452,2]
[380152119,1755579042695,-480.0,0.00019452,2]
[380152121,1755579042704,-480.0,0.00019452,2]
[380152123,1755579042714,-480.0,0.00019452,2]
[380152124,1755579042723,-480.0,0.00019452,2]
[380152125,1755579042732,-448.0897792,0.00019452,2]
[380152126,1755579042741,-480.0,0.00019452,2]
[380152127,1755579042750,-480.0,0.00019452,2]
[380152129,1755579042759,-480.0,0.00019452,2]
[380152131,1755579042769,-480.0,0.00019452,2]
[380152133,1755579042778,-480.0,0.00019452,2]
[380152135,1755579042787,-480.0,0.00019452,2]
[380152137,1755579042796,-480.0,0.00019452,2]
[380152139,1755579042805,-480.0,0.00019452,2]
[380152141,1755579042815,-460.0,0.00019452,2]
[380152143,1755579042824,-480.0,0.00019452,2]
[380152145,1755579042833,-383.82449699,0.00019452,2]
[380152147,1755579042843,-466.007916,0.00019452,2]
[380152149,1755579042852,-480.0,0.00019452,2]
[380152151,1755579042861,-530.94394615,0.00019452,2]
[380152153,1755579042870,-480.0,0.00019452,2]
[380152155,1755579042879,-939.72,0.00019452,2]
[380152157,1755579042889,-480.0,0.00019452,2]
[380152159,1755579042898,-480.0,0.00019452,2]
[380152161,1755579042907,-480.0,0.00019452,2]
[380152163,1755579042916,-480.0,0.00019452,2]
[380152165,1755579042925,-151.0,0.00019452,2]
[380152167,1755579042934,-881.35,0.00019452,2]
[380152169,1755579042943,-420.0,0.00019452,2]
[380152171,1755579042952,-243.507206,0.00019452,2]
[380152173,1755579042961,-151.0,0.00019452,2]
[380152174,1755579042970,-480.0,0.00019452,2]
[380152176,1755579042979,-243.507206,0.00019452,2]
[380152177,1755579042989,-210.747396,0.00019452,2]
[380152178,1755579042997,-480.0,0.00019452,2]
[380152180,1755579043006,-210.747396,0.00019452,2]
[380152181,1755579043104,-480.0,0.00019452,2]
[380152182,1755579043114,-151.0,0.00019452,2]
[380152183,1755579043123,-480.0,0.00019452,2]
[380152184,1755579043133,-152.506116,0.00019452,2]
[380152185,1755579043142,-1301.57,0.00019452,2]
[380152186,1755579043152,-151.757454,0.00019452,2]
[380152187,1755579043161,-480.0,0.00019452,2]
[380152188,1755579043170,-152.506116,0.00019452,2]
[380152189,1755579043180,-151.0,0.00019452,2]
[380152190,1755579043189,-600.59,0.00019452,2]
[380152191,1755579043198,-480.0,0.00019452,2]
[380152192,1755579043207,-480.0,0.00019452,2]
[380152193,1755579043216,-151.0,0.00019452,2]
[380152194,1755579043226,-480.0,0.00019452,2]
[380152195,1755579043236,-480.0,0.00019452,2]
[380152196,1755579043245,-480.0,0.00019452,2]
[380152197,1755579043255,-480.0,0.00019452,2]
[380152198,1755579043264,-1740.65,0.00019452,2]
[380152199,1755579043276,-480.0,0.00019452,2]
[380152200,1755579043295,-355.235657,0.00019452,2]
[380152201,1755579043315,-214.652209,0.00019452,2]
[380152202,1755579043326,-151.0,0.00019452,2]
[380152203,1755579043335,-151.0,0.00019452,2]
[380152204,1755579043346,-480.0,0.00019452,2]
[380152205,1755579043355,-355.235657,0.00019452,2]
[380152206,1755579043364,-214.652209,0.00019452,2]
[380152207,1755579043373,-151.0,0.00019452,2]
[380152208,1755579043383,-151.0,0.00019452,2]
[380152209,1755579043392,-360.0,0.00019452,2]
[380152210,1755579043401,-480.0,0.00019452,2]
[380152211,1755579043411,-492.93291857,0.00019452,2]
[380152212,1755579043421,-480.0,0.00019452,2]
[380152213,1755579043430,-265.10700677,0.00019452,2]
[380152214,1755579043439,-151.0,0.00019452,2]
[380152215,1755579043448,-151.0,0.00019452,2]
[380152216,1755579043457,-480.0,0.00019452,2]
[380152217,1755579043467,-480.0,0.00019452,2]
[380152218,1755579043476,-460.91376589,0.00019452,2]
[380152219,1755579043485,-480.0,0.00019452,2]
[380152220,1755579043494,-480.0,0.00019452,2]
[380152221,1755579043503,-1551.36,0.00019452,2]
[380152222,1755579043512,-643.09,0.00019452,2]
[380152223,1755579043522,-440.0,0.00019452,2]
[380152224,1755579043531,-480.0,0.00019452,2]
[380152225,1755579043540,-480.0,0.00019452,2]
[380152226,1755579043549,-151.0,0.00019452,2]
[380152227,1755579043558,-480.0,0.00019452,2]
[380152228,1755579043567,-480.0,0.00019452,2]
[380152229,1755579043576,-480.0,0.00019452,2]
[380152230,1755579043585,-565.62,0.00019452,2]
[380152231,1755579043595,-1642.46,0.00019452,2]
[380152232,1755579043604,-480.0,0.00019452,2]
[380152233,1755579043613,-151.0,0.00019452,2]
[380152234,1755579043622,-480.0,0.00019452,2]
[380152235,1755579043631,-480.0,0.00019452,2]
[380152236,1755579043641,-480.0,0.00019452,2]
[380152237,1755579043650,-842.12,0.00019452,2]
[380152238,1755579043659,-480.0,0.00019452,2]
[380152239,1755579043669,-480.0,0.00019452,2]
[380152240,1755579043678,-480.0,0.00019452,2]
[380152241,1755579043687,-480.0,0.00019452,2]
[380152242,1755579043696,-480.0,0.00019452,2]
[380152243,1755579043706,-460.97717954,0.00019452,2]
[380152244,1755579043715,-847.46,0.00019452,2]
[380152245,1755579043725,-480.0,0.00019452,2]
[380152246,1755579043734,-489.9098814,0.00019452,2]
[380152247,1755579043743,-2493.28,0.00019452,2]
[380152248,1755579043752,-480.0,0.00019452,2]
[380152249,1755579043761,-480.0,0.00019452,2]
[380152250,1755579043770,-480.0,0.00019452,2]
[380152251,1755579043779,-151.0,0.00019452,2]
[380152252,1755579043788,-480.0,0.00019452,2]
[380152253,1755579043798,-2268.97,0.00019452,2]
[380152254,1755579043806,-674.92,0.00019452,2]